bitfinex-derivatives/quotes_SOLF0:USTF0_20250523
["timestamp","ask_amount","ask_price","bid_price","bid_amount"]
[1748012023688,0.03468476,183.45,183.42,0.03892497]
[1748012024092,0.03468476,183.45,183.42,5.48972497]
[1748012024486,0.03468476,183.45,183.42,0.03892497]
[1748012024786,0.03468476,183.45,183.43,5.4505]
[1748012024990,137.77432506,183.59,183.44,124.06]
[1748012024991,124.06,183.59,183.44,124.06]
[1748012025290,5.448,183.52,183.48,5.4489]
[1748012025488,3.7274,183.58,183.44,124.06]
[1748012025981,3.7274,183.58,183.49,0.04062849]
[1748012026187,0.0345831,183.53,183.49,0.04062849]
[1748012028689,5.4484,183.51,183.49,0.04062849]
[1748012028888,0.0345831,183.53,183.49,0.04062849]
[1748012029688,0.0345831,183.53,183.43,124.02]
[1748012029989,1.8688,183.57,183.43,124.02]
[1748012030386,13.71432506,183.56,183.39,471.2]
[1748012030585,13.71432506,183.52,183.39,595.22]
[1748012030789,0.03452007,183.47,183.44,0.03770869]
[1748012030989,0.03699617,183.47,183.44,0.03977308]
[1748012031187,0.03699617,183.47,183.45,5.4497]
[1748012031389,0.03699617,183.47,183.44,0.03977308]
[1748012032288,0.03699617,183.47,183.44,124.05977308]
[1748012032487,0.03699617,183.47,183.46,5.4497]
[1748012032987,1.8688,183.58,183.44,124.05977308]
[1748012033187,1.8688,183.58,183.44,124.02]
[1748012033393,1.8688,183.58,183.49,5.4487]
[1748012033595,124.02,183.59,183.44,124.02]
[1748012033790,1.8415,183.58,183.45,103.56]
[1748012033983,5.448,183.52,183.5,0.03791684]
[1748012034182,0.03534352,183.53,183.5,0.03791684]
[1748012034389,0.03534352,183.53,183.52,5.4479]
[1748012034596,125.3,183.64,183.5,0.03791684]
[1748012034790,3.7169,183.66,183.49,139.01432506]
[1748012035096,1.8586,183.65,183.49,139.01432506]
[1748012035289,1.8586,183.65,183.49,125.3]
[1748012035494,1.8586,183.65,183.56,5.4465]
[1748012035495,5.4457,183.6,183.56,5.4465]
[1748012035696,5.4457,183.6,183.59,0.03679886]
[1748012036194,125.32018063,183.62,183.5,125.28]
[1748012036393,125.28,183.62,183.5,125.28]
[1748012036699,125.28,183.62,183.5,130.7282]
[1748012036901,125.28,183.62,183.5,125.28]
[1748012037201,5.447,183.55,183.54,0.03966809]
[1748012041502,5.4467,183.56,183.54,0.03966809]
[1748012042103,5.447,183.55,183.54,0.03966809]
[1748012044406,0.03472803,183.58,183.47,125.26]
[1748012044611,1.9094,183.57,183.47,125.26]
[1748012044911,5.4471,183.55,183.47,125.26]
[1748012045110,1.9094,183.57,183.47,125.26]
[1748012045416,5.48479524,183.54,183.5,5.48690814]
[1748012045615,0.03729524,183.54,183.5,0.03870814]
[1748012045809,0.03729524,183.54,183.53,5.4476]
[1748012046009,0.03729524,183.54,183.5,0.03870814]
[1748012046212,0.03729524,183.54,183.52,5.4477]
[1748012046614,0.03729524,183.54,183.5,0.03870814]
[1748012046814,0.03729524,183.54,183.51,5.4481]
[1748012047323,0.03729524,183.54,183.53,5.4476]
[1748012047519,0.03729524,183.54,183.5,0.03870814]
[1748012048417,0.03729524,183.54,183.51,5.4481]
[1748012048621,0.03729524,183.54,183.5,228.79870814]
[1748012049020,0.03729524,183.54,183.53,5.4476]
[1748012050725,10.8858,183.69,183.53,5.44]
[1748012051026,130.9622,183.68,183.54,228.76]
[1748012051722,5.4455,183.6,183.59,0.04031301]
[1748012052323,0.0345646,183.62,183.59,0.04031301]
[1748012052723,0.0345646,183.62,183.59,130.72581301]
[1748012053025,0.0345646,183.62,183.59,125.28031301]
[1748012053229,0.0345646,183.62,183.61,5.4452]
[1748012054530,0.0345646,183.62,183.6,5.4454]
[1748012054723,0.0345646,183.62,183.59,125.28031301]
[1748012055834,0.0345646,183.62,183.61,5.4452]
[1748012056022,125.24,183.72,183.6,103.5]
[1748012056226,125.24,183.72,183.61,5.445]
[1748012056731,125.24,183.72,183.6,108.9454]
[1748012057030,0.0415709,183.68,183.64,0.0350602]
[1748012057535,5.444,183.65,183.64,0.0350602]
[1748012057726,3.841,183.67,183.64,0.0350602]
[1748012058625,5.4438,183.66,183.64,0.0350602]
[1748012058822,3.841,183.67,183.64,0.0350602]
[1748012059826,0.0415709,183.68,183.64,0.0350602]
[1748012060433,0.0415709,183.68,183.66,5.4437]
[1748012060939,0.0415709,183.68,183.67,5.4434]
[1748012064234,125.18,183.78,183.7,5.4423]
[1748012064637,125.18,183.78,183.69,103.46]
[1748012064931,5.4418,183.73,183.69,103.46]
[1748012065135,124.64,183.79,183.69,103.46]
[1748012065332,0.034555,183.76,183.72,0.03959109]
[1748012065537,5.4417,183.73,183.72,0.03959109]
[1748012066735,5.4431,183.69,183.65,108.884]
[1748012067145,5.4431,183.69,183.65,103.44]
[1748012067445,5.4431,183.69,183.66,5.4435]
[1748012067640,0.03639077,183.69,183.66,0.0385913]
[1748012068246,5.4433,183.68,183.66,0.0385913]
[1748012068547,0.03639077,183.69,183.66,0.0385913]
[1748012070444,0.03639077,183.69,183.68,5.4431]
[1748012070651,0.03639077,183.69,183.66,0.0385913]
[1748012070952,0.03639077,183.69,183.67,5.4434]
[1748012071153,0.03639077,183.69,183.66,0.0385913]
[1748012072052,0.03639077,183.69,183.67,5.4434]
[1748012072253,0.03639077,183.69,183.66,0.0385913]
[1748012072555,0.03639077,183.69,183.67,5.4432]
[1748012072759,0.03639077,183.69,183.66,0.0385913]
[1748012073255,124.6,183.68,183.66,0.0385913]
[1748012073450,1.9028,183.67,183.51,6.42749666]
[1748012073655,5.447,183.55,183.51,6.42749666]
[1748012074249,13.71432506,183.67,183.51,6.42749666]
[1748012074450,0.03888183,183.62,183.59,0.04142627]
[1748012074754,5.4455,183.6,183.59,0.04142627]
[1748012075055,0.03888183,183.62,183.59,0.04142627]
[1748012075254,5.4455,183.6,183.59,0.04142627]
[1748012075557,0.03888183,183.62,183.59,0.04142627]
[1748012075857,5.4455,183.61,183.59,0.04142627]
[1748012076181,0.03888183,183.62,183.59,0.04142627]
[1748012078656,0.03888183,183.62,183.61,5.4452]
[1748012079164,0.03888183,183.62,183.59,0.04142627]
[1748012079763,124.65888183,183.62,183.59,0.04142627]
[1748012080656,124.65888183,183.62,183.59,5.48702627]
[1748012081049,124.65888183,183.62,183.59,0.04142627]
[1748012081751,0.03888183,183.62,183.61,5.4452]
[1748012083560,0.03888183,183.62,183.59,0.04142627]
[1748012084060,171.0,183.83,183.54,103.44]
[1748012084252,142.09262506,183.73,183.56,124.64]
[1748012084653,142.09262506,183.73,183.64,5.4441]
[1748012084962,5.4431,183.69,183.64,5.4441]
[1748012085263,5.4431,183.69,183.56,124.64]
[1748012085264,0.03553188,183.68,183.65,5.48233284]
[1748012085460,0.03553188,183.68,183.65,5.479825]
[1748012085655,0.03553188,183.68,183.65,0.035925]
[1748012086354,5.47883188,183.68,183.65,0.035925]
[1748012086757,0.03553188,183.68,183.65,0.035925]
[1748012086962,5.4437,183.66,183.65,0.035925]
[1748012088565,124.67553188,183.68,183.65,0.035925]
[1748012089060,5.4437,183.66,183.65,0.035925]
[1748012089457,124.67553188,183.68,183.59,108.9058]
[1748012089655,1.8476,183.65,183.55,103.46]
[1748012089860,1.8833,183.64,183.55,103.46]
[1748012090051,124.64,183.63,183.55,103.46]
[1748012090452,124.64,183.63,183.57,0.04186137]
[1748012090655,5.4459,183.59,183.57,0.04186137]
[1748012090964,0.04147975,183.61,183.57,0.04186137]
[1748012091461,0.04147975,183.61,183.5,103.46]
[1748012091663,5.4471,183.55,183.51,5.4481]
[1748012092567,0.04041998,183.55,183.52,5.4477]
[1748012092765,0.04041998,183.55,183.51,0.03474857]
[1748012093064,0.04041998,183.55,183.54,5.4473]
[1748012093769,497.30785497,183.74,183.54,130.1]
[1748012093967,1.9844,183.72,183.56,13.71432506]
[1748012094167,5.4432,183.68,183.57,103.48]
[1748012094366,5.4432,183.68,183.64,5.4443]
[1748012094866,5.48182158,183.68,183.64,5.48297865]
[1748012095366,0.03862158,183.68,183.64,0.03867865]
[1748012095968,0.03862158,183.68,183.67,5.4434]
[1748012096169,0.03862158,183.68,183.64,0.03867865]
[1748012096564,5.444,183.65,183.64,0.03867865]
[1748012096760,0.03862158,183.68,183.59,103.46]
[1748012096966,24.3953757,183.71,183.59,103.46]
[1748012097772,0.03969189,183.67,183.63,0.03454683]
[1748012097969,125.09969189,183.67,183.63,0.03454683]
[1748012098275,5.4443,183.64,183.63,0.03454683]
[1748012098578,125.09969189,183.67,183.63,0.03454683]
[1748012098771,5.4442,183.65,183.63,0.03454683]
[1748012099870,5.4443,183.64,183.63,0.03454683]
[1748012100074,125.09969189,183.67,183.63,0.03454683]
[1748012100875,5.4443,183.64,183.63,0.03454683]
[1748012104874,125.09969189,183.67,183.63,0.03454683]
[1748012105377,5.4443,183.64,183.63,0.03454683]
[1748012106979,0.03969189,183.67,183.63,0.03454683]
[1748012107771,5.4443,183.64,183.63,0.03454683]
[1748012108281,0.03969189,183.67,183.63,0.03454683]
[1748012108475,5.48319189,183.67,183.64,5.4443]
[1748012108675,0.03969189,183.67,183.63,0.03454683]
[1748012108871,5.4443,183.64,183.63,0.03454683]
[1748012109273,5.4443,183.64,183.63,4.683e-05]
[1748012111479,7.3246,183.64,183.63,4.683e-05]
[1748012113480,5.4443,183.64,183.63,4.683e-05]
[1748012114383,10.8843,183.64,183.63,4.683e-05]
[1748012114583,5.4443,183.64,183.63,4.683e-05]
[1748012114783,5.4443,183.64,183.47,129.92482988]
[1748012114784,27.8972757,183.64,183.47,129.92482988]
[1748012114983,22.4572757,183.6,183.47,129.92482988]
[1748012115188,3.8381,183.59,183.47,4.86482988]
[1748012115386,125.06,183.58,183.47,4.86482988]
[1748012115789,5.4479,183.52,183.51,0.03592008]
[1748012116675,5.449,183.48,183.47,4.86482988]
[1748012117187,125.1,183.53,183.47,4.86482988]
[1748012117485,125.1,183.53,183.41,103.5]
[1748012117681,5.4496,183.46,183.45,0.03836651]
[1748012118787,125.13498074,183.49,183.41,5.4511]
[1748012118986,125.1,183.49,183.37,20.6647116]
[1748012119183,3.9134,183.48,183.37,20.6647116]
[1748012119490,3.9134,183.48,183.38,5.4518]
[1748012119788,0.04015521,183.45,183.37,20.6647116]
[1748012120492,0.04015521,183.45,183.36,125.12]
[1748012120686,0.04015521,183.45,183.36,130.5724]
[1748012120990,5.4518,183.39,183.36,125.12]
[1748012121184,5.48667067,183.39,183.36,125.12]
[1748012121487,0.03487067,183.39,183.36,125.12]
[1748012121687,0.03487067,183.39,183.35,470.6]
[1748012122077,5.48667067,183.39,183.35,470.6]
[1748012122278,0.03487067,183.39,183.32,5.7591]
[1748012122588,0.03487067,183.39,183.32,125.12]
[1748012122983,125.17487067,183.39,183.27,125.14]
[1748012123183,5.4534,183.34,183.28,5.4547]
[1748012123490,0.04040475,183.35,183.27,228.68]
[1748012123686,0.04040475,183.35,183.3,5.4543]
[1748012123900,0.04040475,183.35,183.27,228.68]
[1748012125299,0.04040475,183.35,183.28,62.0]
[1748012125597,0.04040475,183.35,183.27,228.68]
[1748012126099,5.49340475,183.35,183.3,5.4544]
[1748012126294,5.49340475,183.35,183.27,228.68]
[1748012126597,0.04040475,183.35,183.27,228.68]
[1748012126795,22.52244017,183.47,183.28,22.52244017]
[1748012127097,22.52244017,183.47,183.32,22.52244017]
[1748012127098,125.8589,183.47,183.32,22.52244017]
[1748012127295,124.04,183.51,183.33,127.811]
[1748012127494,124.04,183.51,183.36,22.52244017]
[1748012127689,124.04,183.51,183.34,124.04]
[1748012127888,0.04156087,183.44,183.41,0.04178229]
[1748012128087,0.03881288,183.44,183.41,0.04178229]
[1748012128292,0.03881288,183.44,183.31,5.454]
[1748012128493,5.6676,183.45,183.31,5.454]
[1748012128694,5.6676,183.45,183.29,124.04]
[1748012128895,5.6676,183.45,183.32,5.4538]
[1748012129096,5.6676,183.45,183.29,124.04]
[1748012129296,5.4523,183.38,183.32,5.4538]
[1748012129603,0.04068848,183.39,183.32,5.4538]
[1748012129797,5.4524,183.37,183.32,5.4538]
[1748012129999,0.04068848,183.39,183.29,124.04]
[1748012130198,0.04015755,183.36,183.29,124.04]
[1748012131100,0.04015755,183.36,183.32,5.4536]
[1748012131395,0.04015755,183.36,183.29,124.04]
[1748012131598,0.04015755,183.36,183.35,5.4529]
[1748012131802,5.451,183.42,183.35,124.06]
[1748012132104,124.06,183.48,183.35,124.06]
[1748012132405,124.06,183.48,183.39,5.4517]
[1748012132799,0.04034497,183.45,183.42,0.04174274]
[1748012132999,5.4515,183.4,183.36,124.06]
[1748012133202,5.49211461,183.4,183.36,124.10006299]
[1748012133403,5.4518,183.39,183.36,124.10006299]
[1748012133703,0.04061461,183.4,183.36,124.10006299]
[1748012135309,5.4518,183.39,183.36,124.10006299]
[1748012135615,0.04061461,183.4,183.36,124.10006299]
[1748012135905,0.04061461,183.4,183.38,5.4518]
[1748012136106,0.04061461,183.4,183.36,124.10006299]
[1748012136313,5.49211461,183.4,183.36,124.10006299]
[1748012137206,0.04061461,183.4,183.36,124.10006299]
[1748012137609,0.04061461,183.4,183.36,129.55256299]
[1748012137809,0.04061461,183.4,183.36,124.10006299]
[1748012138309,0.04061461,183.4,183.36,129.55256299]
[1748012139214,0.04061461,183.4,183.36,124.10006299]
[1748012140412,0.04061461,183.4,183.36,129.55246299]
[1748012140615,0.04061461,183.4,183.36,124.10006299]
[1748012143617,0.04061461,183.4,183.39,5.4517]
[1748012144111,0.04061461,183.4,183.38,5.452]
[1748012144312,0.04061461,183.4,183.36,124.10006299]
[1748012145315,0.04061461,183.4,183.37,5.4521]
[1748012145703,0.04061461,183.4,183.36,227.68006299]
[1748012145908,0.04061461,183.4,183.39,5.4517]
[1748012146314,0.04061461,183.4,183.37,103.58]
[1748012146915,0.04061461,183.4,183.39,5.4517]
[1748012147419,1.461e-05,183.4,183.39,5.4517]
[1748012147806,5.4494,183.47,183.42,5.4507]
[1748012148607,5.4496,183.46,183.41,129.5111]
[1748012148814,0.04165606,183.45,183.42,0.04073609]
[1748012149513,5.49155606,183.45,183.42,0.04073609]
[1748012150511,0.04165606,183.45,183.42,0.04073609]
[1748012150717,13.68210012,183.44,183.34,124.06]
[1748012151014,1.9524,183.43,183.34,124.06]
[1748012151402,125.9987,183.5,183.38,5.4518]
[1748012151618,0.03553469,183.46,183.42,0.03555255]
[1748012152119,5.4505,183.43,183.42,0.03555255]
[1748012152715,5.46,183.43,183.34,124.06]
[1748012152913,3.8911,183.5,183.3,103.56]
[1748012152914,1.8748,183.42,183.3,124.06]
[1748012153118,1.8748,183.42,183.31,5.4541]
[1748012153721,0.0370897,183.38,183.3,124.06]
[1748012154414,5.4531,183.35,183.3,124.06]
[1748012154719,0.03467727,183.34,183.3,124.06]
[1748012154919,5.49508376,183.34,183.3,129.5143]
[1748012155115,0.04188376,183.34,183.3,124.06]
[1748012155624,5.4535,183.33,183.3,124.06]
[1748012156522,5.4539,183.32,183.3,124.06]
[1748012157218,5.4541,183.31,183.3,124.06]
[1748012157706,0.04188376,183.34,183.3,124.06]
[1748012158319,1.8748,183.42,183.34,5.453]
[1748012158512,1.8748,183.42,183.35,124.06]
[1748012158708,127.8171,183.47,183.35,124.06]
[1748012159221,0.04063441,183.43,183.39,0.03923113]
[1748012159921,5.4512,183.41,183.39,0.03923113]
[1748012160424,0.04063441,183.43,183.39,0.03923113]
[1748012161215,5.4512,183.41,183.39,0.03923113]
[1748012161411,0.04063441,183.43,183.39,0.03923113]
[1748012161822,5.4509,183.42,183.39,0.03923113]
[1748012162024,0.04063441,183.43,183.39,0.03923113]
[1748012162425,5.49143441,183.43,183.39,0.03923113]
[1748012162629,0.04063441,183.43,183.39,0.03923113]
[1748012163723,0.04063441,183.43,183.33,124.06]
[1748012164120,5.4522,183.38,183.33,129.5132]
[1748012164417,124.06,183.45,183.33,124.06]
[1748012164612,0.04156805,183.41,183.37,0.0205908]
[1748012164819,0.04156805,183.41,183.38,124.06]
[1748012165019,5.49276805,183.41,183.38,124.06]
[1748012165222,0.04156805,183.41,183.38,124.06]
[1748012166825,0.04156805,183.41,183.4,5.4514]
[1748012167126,0.04156805,183.41,183.38,124.06]
[1748012169032,0.04156805,183.41,183.4,5.4514]
[1748012169229,13.25352991,183.57,183.39,471.02]
[1748012169526,13.25352991,183.57,183.45,13.68210012]
[1748012169822,13.25352991,183.57,183.49,13.68210012]
[1748012170027,13.25352991,183.57,183.5,595.06]
[1748012170230,13.25352991,183.57,183.56,5.4467]
[1748012170431,0.03774674,183.58,183.56,227.62]
[1748012170620,0.03438676,183.59,183.56,227.62]
[1748012170823,0.04074874,183.59,183.56,227.65650798]
[1748012172333,5.444,183.66,183.59,5.4455]
[1748012172643,1.8071,183.69,183.56,227.62]
[1748012172825,127.7817,183.74,183.57,5.6332]
[1748012173022,5.4428,183.69,183.62,5.4446]
[1748012173221,0.04053703,183.67,183.64,0.04045312]
[1748012173422,0.04053703,183.67,183.64,103.60045312]
[1748012173634,5.444,183.65,183.64,103.60045312]
[1748012180736,5.4403,183.78,183.71,5.442]
[1748012180931,0.03458586,183.76,183.73,0.03963889]
[1748012181132,0.03818553,183.76,183.74,123.94]
[1748012181632,5.47898553,183.76,183.74,123.94]
[1748012182038,0.03818553,183.76,183.74,123.94]
[1748012182234,0.03818553,183.76,183.73,0.03498946]
[1748012182440,0.03818553,183.76,183.64,13.68210012]
[1748012182741,123.94,183.81,183.68,123.9]
[1748012183238,123.9,183.82,183.68,123.9]
[1748012183540,0.04134546,183.77,183.73,0.03784731]
[1748012183741,0.04134546,183.77,183.73,0.03817894]
[1748012183742,0.03858439,183.77,183.73,0.03817894]
[1748012184933,5.4413,183.74,183.73,0.03817894]
[1748012185141,3.7076,183.76,183.68,123.84]
[1748012185441,5.4425,183.71,183.67,123.84]
[1748012185742,3.7076,183.76,183.67,123.84]
[1748012185939,5.4431,183.68,183.67,123.84]
[1748012186139,0.03609384,183.69,183.66,0.0298231]
[1748012186337,0.03567659,183.69,183.66,0.0298231]
[1748012186541,5.4434,183.67,183.66,0.0298231]
[1748012187346,5.4449,183.63,183.6,123.82]
[1748012187549,1.935,183.68,183.6,123.82]
[1748012187738,1.935,183.68,183.57,144.46412777]
[1748012188139,1.935,183.68,183.57,123.82]
[1748012188340,0.04068754,183.64,183.57,123.82]
[1748012188841,0.04068754,183.64,183.53,594.2]
[1748012189245,123.86068754,183.64,183.53,123.82]
[1748012189542,5.4473,183.54,183.53,123.82]
[1748012189746,0.03785218,183.55,183.49,232.7087]
[1748012190043,5.48485218,183.55,183.49,227.26]
[1748012190237,5.48485218,183.55,183.5,5.4484]
[1748012190842,0.03785218,183.55,183.47,1.9121]
[1748012191143,0.03785218,183.55,183.48,123.82]
[1748012191544,0.03785218,183.55,183.48,139.46010012]
[1748012191746,0.03785218,183.55,183.49,1.9821]
[1748012191948,0.03785218,183.55,183.53,5.4473]
[1748012192140,0.03785218,183.55,183.54,123.84]
[1748012193049,1.8471,183.67,183.54,123.84]
[1748012193352,1.8471,183.67,183.55,5.4469]
[1748012193646,1.8471,183.67,183.56,103.46]
[1748012193846,1.8471,183.67,183.56,108.9066]
[1748012194047,0.04061971,183.63,183.6,0.03785218]
[1748012194845,0.04061971,183.63,183.6,123.87785218]
[1748012195351,5.4431,183.68,183.62,5.4447]
[1748012195550,123.84,183.71,183.6,123.84]
[1748012196352,0.03836403,183.67,183.64,0.04126152]
[1748012196551,5.4439,183.66,183.64,0.04126152]
[1748012196845,0.03836403,183.67,183.64,0.04126152]
[1748012197050,5.48176403,183.67,183.65,123.84]
[1748012197247,0.03836403,183.67,183.65,123.84]
[1748012197746,0.03836403,183.67,183.64,0.04126152]
[1748012197948,0.03836403,183.67,183.39,16.3548]
[1748012197949,0.03836403,183.67,183.56,123.84]
[1748012198150,1.8185,183.68,183.56,123.84]
[1748012198548,5.4439,183.66,183.6,5.4453]
[1748012198849,0.03465503,183.65,183.61,0.03721037]
[1748012199044,0.03465503,183.65,183.61,123.87721037]
[1748012199351,0.03465503,183.65,183.61,0.03721037]
[1748012201048,5.4449,183.62,183.61,0.03721037]
[1748012201249,123.84,183.64,183.51,123.84]
[1748012201450,123.84,183.64,183.52,123.84]
[1748012201649,1.9056,183.73,183.52,123.84]
[1748012201650,3.7056,183.66,183.52,123.84]
[1748012202142,0.03644167,183.61,183.52,123.84]
[1748012202657,0.03644167,183.61,183.56,5.4464]
[1748012202855,0.03644167,183.61,183.57,123.84]
[1748012203848,5.447,183.56,183.53,123.84]
[1748012204043,0.03904573,183.56,183.47,19.37460012]
[1748012204350,0.03904573,183.56,183.48,227.3]
[1748012205652,0.03904573,183.56,183.48,123.84]
[1748012206555,5.4471,183.55,183.5,5.4483]
[1748012207155,0.03904573,183.56,183.51,5.4479]
[1748012207855,5.48594573,183.56,183.51,5.4479]
[1748012208056,0.03904573,183.56,183.5,5.4482]
[1748012208256,0.03904573,183.56,183.48,123.84]
[1748012210060,5.48594573,183.56,183.5,5.4484]
[1748012210258,5.48594573,183.56,183.48,123.84]
[1748012210556,5.48594573,183.56,183.51,5.4479]
[1748012210747,4.573e-05,183.56,183.51,13.68210012]
[1748012210948,123.86,183.73,183.51,13.68210012]
[1748012211154,129.5226,183.73,183.51,13.68210012]
[1748012211356,5.4454,183.61,183.51,13.68210012]
[1748012211666,123.86,183.68,183.53,5.4474]
[1748012211853,0.04157219,183.62,183.59,0.03878414]
[1748012212049,0.03791022,183.62,183.59,0.03878414]
[1748012212463,5.4455,183.6,183.59,0.03878414]
[1748012219074,5.4477,183.53,183.51,123.78]
[1748012219284,3.7303,183.61,183.51,123.78]
[1748012219580,1.8167,183.6,183.49,5.4486]
[1748012219773,1.8167,183.6,183.47,232.9525]
[1748012220079,1.8167,183.6,183.47,129.4725]
[1748012220281,0.04117504,183.55,183.47,227.26]
[1748012220579,0.04117504,183.55,183.43,123.78]
[1748012220783,5.4489,183.49,183.43,123.78]
[1748012220977,0.03469897,183.51,183.43,123.78]
[1748012221373,5.4505,183.43,183.42,4.86482988]
[1748012221969,0.03823278,183.44,183.42,4.86482988]
[1748012222479,5.4491,183.48,183.45,5.4499]
[1748012222683,3.9074,183.57,183.45,123.8]
[1748012222982,127.7074,183.57,183.45,123.8]
[1748012223683,0.03631589,183.53,183.49,0.03526423]
[1748012224184,5.4484,183.5,183.49,0.03526423]
[1748012226778,5.4506,183.43,183.38,3.8375]
[1748012226975,5.4506,183.43,183.4,123.8]
[1748012227576,5.4511,183.41,183.4,123.8]
[1748012227975,0.03724012,183.42,183.36,123.82]
[1748012228175,137.53934024,183.42,183.33,4.86482988]
[1748012228376,1.8372,183.41,183.33,4.86482988]
[1748012229180,13.68210012,183.38,183.3,6.42749666]
[1748012229382,13.68210012,183.34,183.22,123.82]
[1748012229581,5.4547,183.29,183.22,123.82]
[1748012229783,13.68210012,183.34,183.22,123.82]
[1748012229784,0.03693098,183.3,183.22,123.82]
[1748012230578,5.4551,183.28,183.22,123.82]
[1748012230882,0.03693098,183.3,183.22,123.82]
[1748012231080,5.4538,183.33,183.27,5.455]
[1748012231382,1.858,183.37,183.26,123.88]
[1748012231583,5.456,183.25,183.19,5.4576]
[1748012231781,5.456,183.25,183.2,227.44]
[1748012231983,123.88,183.33,183.2,123.88]
[1748012232285,5.4556,183.26,183.25,0.03936013]
[1748012232784,5.4571,183.21,183.17,576.209]
[1748012232981,5.4571,183.21,183.17,105.489]
[1748012233290,123.88,183.28,183.17,1.929]
[1748012233788,5.4571,183.21,183.17,1.929]
[1748012233991,0.03733773,183.24,183.16,123.88]
[1748012234183,0.03783638,183.22,183.16,123.88]
[1748012235586,0.03783638,183.22,183.12,227.52]
[1748012236177,0.03783638,183.22,183.18,5.4579]
[1748012236383,103.6,183.35,183.18,5.4579]
[1748012236384,146.48498784,183.38,183.18,0.03863736]
[1748012236690,146.48498784,183.38,183.17,146.48498784]
[1748012236996,123.92,183.38,183.17,146.48498784]
[1748012237482,0.04056156,183.29,183.26,0.03863736]
[1748012237681,0.03754624,183.29,183.26,0.03863736]
[1748012238691,5.49254624,183.29,183.26,0.03863736]
[1748012238987,0.03754624,183.29,183.26,0.03863736]
[1748012239189,5.4552,183.28,183.26,0.03863736]
[1748012239383,0.03754624,183.29,183.26,0.03863736]
[1748012239984,5.4553,183.27,183.26,0.03863736]
[1748012241793,0.03754624,183.29,183.2,123.98]
[1748012241992,123.98,183.28,183.2,123.98]
[1748012242189,123.98,183.28,183.17,1.9484]
[1748012242382,5.4573,183.21,183.17,1.9484]
[1748012242585,0.03932013,183.21,183.16,123.98]
[1748012243494,0.03932013,183.21,183.19,5.4574]
[1748012243695,0.03932013,183.21,183.16,123.98]
[1748012243994,0.03932013,183.21,183.19,5.4576]
[1748012244184,0.03932013,183.21,183.16,123.98]
[1748012245190,0.03932013,183.21,183.18,5.4579]
[1748012245398,0.03932013,183.21,183.18,123.98]
[1748012246295,5.4577,183.19,183.18,123.98]
[1748012246596,0.03932013,183.21,183.13,1.8943]
[1748012246787,0.03932013,183.21,183.12,125.8094]
[1748012247095,0.03932013,183.21,183.06,3.7238]
[1748012247293,5.4597,183.13,183.09,123.88]
[1748012247597,0.04156468,183.16,183.09,123.88]
[1748012248200,0.04156468,183.16,182.98,471.38]
[1748012248496,0.03457629,183.09,183.04,3.6917]
[1748012248699,0.04062678,183.08,182.99,227.56]
[1748012248895,0.04062678,183.08,182.99,229.42]
[1748012249392,5.4617,183.06,182.99,229.42]
[1748012249695,0.03886399,183.04,183.0,5.4633]
[1748012249998,0.03886399,183.04,182.99,229.42]
[1748012250194,0.03886399,183.04,182.93,9.64124499]
[1748012250400,0.04047941,183.0,182.95,1.8942]
[1748012250699,3.7347,183.13,182.95,1.8942]
[1748012250891,123.9,183.12,182.95,1.8942]
[1748012251594,5.4613,183.07,182.95,1.8942]
[1748012251797,0.04124147,183.03,182.99,0.03539775]
[1748012252001,0.0361814,183.03,183.0,123.94]
[1748012252188,0.0361814,183.03,183.01,5.4628]
[1748012252694,0.0361814,183.03,183.0,123.94]
[1748012252894,0.0361814,183.03,183.02,5.4627]
[1748012253097,0.0361814,183.03,183.0,123.94]
[1748012253298,0.0361814,183.03,183.01,5.463]
[1748012253495,0.0361814,183.03,183.0,123.94]
[1748012253900,0.0361814,183.03,183.02,5.4627]
[1748012254103,123.94,183.17,183.0,123.94]
[1748012254404,3.8428,183.16,183.0,123.94]